{"text_format":"1","workbook":"xlsx","n_sheets":4,"sheets":["Beschäftigte","Keine_Mietkürzung","Mietkürzung_20%","Textbausteine"],"not_rendered":{"charts":0,"images":0,"macros":0,"external_links":0,"defined_names":0,"comments":0,"pivot_tables":0},"unopened":[],"bounds":{"document_bytes":16777216,"sheet_cells":100000,"rows_first":2000,"rows_last":500,"rows_between":2000,"halvings":0,"cell_chars":16384,"cell_head_chars":4096},"cells_cut":0,"cells_raw":0,"read":"whole","date_system":"1900"}

{"sheet":"Beschäftigte","index":0,"n_rows":21,"n_cols":6,"rows_kept":21,"cut":false,"hidden":false,"merged":[[12,1,12,4]]}
["Bestimmung der Vollzeitäquivalente"]
[]
[]
[]
[null,"Beschäftigte","Arbeitszeit","Faktor","Anzahl","Umrechnung"]
[null,"Teilzeitkraft","bis 20 Std./Woche",0.5,null,{"$f":"D6*E6","v":0}]
[null,"Teilzeitkraft","über 20 und unter 30 Std./Woche",0.75,null,0]
[null,"Vollzeitkraft","über 30 Std./Woche",1,null,0]
[null,"Auszubildende/r1","für alle Auszubildenden",1,null,0]
[null,"Mitarbeiter/in auf 450 € Basis","für alle 450 Euro-Jobber",0.3,null,0]
[null,"Mitarbeiter/in Elternzeit","keine Anrechnung möglich",0,null,0]
[]
[null,"Anzahl der Vollzeit-Äquivalente",null,null,null,{"$f":"SUM(F6:F12)","v":0}]
[null,"Version 01.04.2020"]
[]
[null,"1Hinweis"]
[null,"Unternehmen bis zu 10 Beschäftigte","Auszubildende müssen mitgerechnet werden."]
[null,"Unternehmen über 10 Beschäftigte","Auszubildende können mitgerechnet werden."]
[null,null," "]
[null,"Mitarbeitende Eigentümer / Gesellschafter gelten ebenfalls als Beschäftigte"]
[null,"und können in die Tabelle eingetragen werden (in Abhängigkeit Ihrer Wochenarbeitszeit)."]

{"sheet":"Keine_Mietkürzung","index":1,"n_rows":62,"n_cols":9,"rows_kept":62,"cut":false,"hidden":false,"merged":[[5,1,5,4],[12,1,12,4]]}
["Liquiditätsplanung Corona Zuschuss",null,null,null,null,null,null,"Erläuterungstext"]
["keine Mietkürzung"]
[null,null,null,null,null,null,null,"Grund für den Antrag:","Bitte auswählen!"]
[]
[null,"Monat","2020-04-01","2020-05-01","2020-06-01",null,null,"Erläuterungstext (bitte in den Antrag kopieren)"]
[null,"Einzahlungen"]
[null,"Umsatz",null,null,null,null,null,"Durch die Covid-19-Pandemie ist mein Betrieb in wirtschaftlichen Schwierigkeiten geraten."]
[null,"Sonstige betriebliche Erlöse"]
[null,"Zinserträge",null,null,null,null,null,"Der Grund ist insbesondere:",{"$f":"I3","v":"Bitte auswählen!"}]
[]
[null,"Summe Einzahlungen",{"$f":"SUM(C7:C10)","v":0},{"$f":"SUM(D7:D10)","v":0},{"$f":"SUM(E7:E10)","v":0},null,null,"Die Summe der Einzahlungen wurden mit",{"$f":"C53","v":0}]
[null,null,null,null,null,null,null,"für den Zeitraum April 2020 bis Juni 2020 kalkuliert."]
[null,"Auszahlungen",null,null,null,null,null,"Diese Position berücksichtigt insbesondere die geplanten Umsätze"]
[null,"Materialaufwand - keine Lageraufstockung"]
[null,"Hilfs- und Betriebsstoffe",null,null,null,null,null,"Die Summe der Auszahlungen wurden mit",{"$f":"C54","v":0}]
[null,"Miete/Pacht",null,null,null,null,null,"für den Zeitraum April 2020 bis Juni 2020 kalkuliert."]
[null,"Strom",null,null,null,null,null,"Diese Position berücksichtigt insbesondere die geplanten Betriebsausgaben."]
[null,"Heizung"]
[null,"Versicherung, Beiträge im Zeitraum",null,null,null,null,null,"Tilgungen und Zinszahlungen für betriebliche "]
[null,"Kfz.-Kosten (nur für vorhandene Fahrzeuge)",null,null,null,null,null,"Darlehn wurde mit",{"$f":"SUM(C44:E44)","v":0}]
[null,"Kfz.-Steuer",null,null,null,null,null,"berücksichtigt und sind in der Summe der Auszahlungen enthalten."]
[null,"Kfz.-Versicherung"]
[null,"Kraftstoff",null,null,null,null,null,"Somit ergibt sich eine benötige Liquidität von",{"$f":"C55","v":0}]
[null,"Kfz.-Reparaturen"]
[null,"Leasinggebühren",null,null,null,null,null,"Lebenshaltungskosten habe ich in der Berechnung nicht mit eingerechnet."]
[null,"Werbung (nur im bisher üblichen Umfang)",null,null,null,null,null,"Private liquide Mittel wurde in der Berechnung nicht mit eingerechnet."]
[null,"Verpachung, Entsorgung",null,null,null,null,null,"Weitere sonstige staatliche oder europäischen Hilfe habe ich nicht bekommen."]
[null,"Reparatur, Instandhaltung"]
[null,"Sonstige Kosten"]
[null,"Fremdleistungen"]
[null,"Porto"]
[null,"Telefon/Internet"]
[null,"Büromaterial"]
[null,"Rechts- & Beratungskosten"]
[null,"Steuerberater"]
[null,"Kontoführungsgebühren"]
[null,"Ersatzbeschaffung zur Aufrechterhaltung"]
[null,"Darlehn Zins und Tilgung"]
[]
[]
[]
[]
[]
[]
[]
[]
[]
[]
[null,"Summe Auszahlungen",{"$f":"SUM(C14:C47)","v":0},{"$f":"SUM(D14:D47)","v":0},{"$f":"SUM(E14:E47)","v":0}]
[]
[null,"Ergebnis ",{"$f":"C11-C49","v":0},{"$f":"D11-D49","v":0},{"$f":"E11-E49","v":0}]
[]
[null,"Summe Einzahlungen",{"$f":"SUM(C11:E11)","v":0}]
[null,"Summe Auszahlungen",{"$f":"-SUM(C49:E49)","v":0}]
[null,"benötigte Liquidität",{"$f":"C53+C54","v":0}]
[]
[null,"Version 01.04.2020"]
[]
[]
[]
[]
[null,null," "]

{"sheet":"Mietkürzung_20%","index":2,"n_rows":62,"n_cols":11,"rows_kept":62,"cut":false,"hidden":false,"merged":[[5,1,5,6],[12,1,12,6]]}
["Liquiditätsplanung Corona Zuschuss",null,null,null,null,null,null,null,null,"Erläuterungstext"]
["Mietkürzung von mindestens 20% (bis 5 Monate nach Antragstellung) vom Vermieter erhalten"]
[null,null,null,null,null,null,null,null,null,"Grund für den Antrag:","Bitte auswählen!"]
[]
[null,"Monat","2020-04-01","2020-05-01","2020-06-01","2020-07-01","2020-08-01",null,null,"Erläuterungstext (bitte in den Antrag kopieren)"]
[null,"Einzahlungen"]
[null,"Umsatz",null,null,null,null,null,null,null,"Durch die Covid-19-Pandemie ist mein Betrieb in wirtschaftlichen Schwierigkeiten geraten."]
[null,"Sonstige betriebliche Erlöse"]
[null,"Zinserträge",null,null,null,null,null,null,null,"Der Grund ist insbesondere:",{"$f":"K3","v":"Bitte auswählen!"}]
[]
[null,"Summe Einzahlungen",{"$f":"SUM(C7:C10)","v":0},{"$f":"SUM(D7:D10)","v":0},{"$f":"SUM(E7:E10)","v":0},{"$f":"SUM(F7:F10)","v":0},{"$f":"SUM(G7:G10)","v":0},null,null,"Die Summe der Einzahlungen wurden mit",{"$f":"C53","v":0}]
[null,null,null,null,null,null,null,null,null,"für den Zeitraum April 2020 bis August 2020 kalkuliert."]
[null,"Auszahlungen",null,null,null,null,null,null,null,"Diese Position berücksichtigt insbesondere die geplanten Umsätze"]
[null,"Materialaufwand - keine Lageraufstockung"]
[null,"Hilfs- und Betriebsstoffe",null,null,null,null,null,null,null,"Die Summe der Auszahlungen wurden mit",{"$f":"C54","v":0}]
[null,"Miete/Pacht",null,null,null,null,null,null,null,"für den Zeitraum April 2020 bis August 2020 kalkuliert."]
[null,"Strom",null,null,null,null,null,null,null,"Diese Position berücksichtigt insbesondere die geplanten Betriebsausgaben."]
[null,"Heizung"]
[null,"Versicherung, Beiträge im Zeitraum",null,null,null,null,null,null,null,"Tilgungen und Zinszahlungen für betriebliche "]
[null,"Kfz.-Kosten (nur für vorhandene Fahrzeuge)",null,null,null,null,null,null,null,"Darlehn wurde mit",{"$f":"SUM(C44:G44)","v":0}]
[null,"Kfz.-Steuer",null,null,null,null,null,null,null,"berücksichtigt und sind in der Summe der Auszahlungen enthalten."]
[null,"Kfz.-Versicherung"]
[null,"Kraftstoff",null,null,null,null,null,null,null,"Somit ergibt sich eine benötige Liquidität von",{"$f":"C55","v":0}]
[null,"Kfz.-Reparaturen"]
[null,"Leasinggebühren",null,null,null,null,null,null,null,"Lebenshaltungskosten habe ich in der Berechnung nicht mit eingerechnet."]
[null,"Werbung (nur im bisher üblichen Umfang)",null,null,null,null,null,null,null,"Private liquide Mittel wurde in der Berechnung nicht mit eingerechnet."]
[null,"Verpachung, Entsorgung",null,null,null,null,null,null,null,"Weitere sonstige staatliche oder europäischen Hilfe habe ich nicht bekommen."]
[null,"Reparatur, Instandhaltung"]
[null,"Sonstige Kosten"]
[null,"Fremdleistungen"]
[null,"Porto"]
[null,"Telefon/Internet"]
[null,"Büromaterial"]
[null,"Rechts- & Beratungskosten"]
[null,"Steuerberater"]
[null,"Kontoführungsgebühren"]
[null,"Ersatzbeschaffung zur Aufrechterhaltung"]
[null,"Darlehn Zins und Tilgung"]
[]
[]
[]
[]
[]
[]
[]
[]
[]
[]
[null,"Summe Auszahlungen",{"$f":"SUM(C14:C47)","v":0},{"$f":"SUM(D14:D47)","v":0},{"$f":"SUM(E14:E47)","v":0},{"$f":"SUM(F14:F47)","v":0},{"$f":"SUM(G14:G47)","v":0}]
[]
[null,"Ergebnis ",{"$f":"C11-C49","v":0},{"$f":"D11-D49","v":0},{"$f":"E11-E49","v":0},{"$f":"F11-F49","v":0},{"$f":"G11-G49","v":0}]
[]
[null,"Summe Einzahlungen",{"$f":"SUM(C11:G11)","v":0}]
[null,"Summe Auszahlungen",{"$f":"-SUM(C49:G49)","v":0}]
[null,"benötigte Liquidität",{"$f":"C53+C54","v":0}]
[]
[null,"Version 01.04.2020"]
[]
[]
[]
[]
[null,null," "]

{"sheet":"Textbausteine","index":3,"n_rows":5,"n_cols":1,"rows_kept":5,"cut":false,"hidden":false,"merged":[]}
["Bitte auswählen!"]
["Mehr als 1/2 der Aufträge sind weggefallen."]
["Die Umsätze sind zum Vergleichsmonat mehr als halbiert."]
["Die Möglichkeit Umsätze zu erzielen wurde durch eine behördliche Auflage massiv eingeschränkt."]
["Die vorhandenen Mittel reichen nicht aus (Liquiditätsengpass)."]